Workbook

Sheet الربع
F3: اشعار خصم حافز ربع سنوي
C5: العميـــــــل : | D5: ابو عمار للتجارة | E5: الحرمين-5 | F5: الحرمين-5 | G5: الحرمين-5 | H5: الحرمين-5 | J5: =VLOOKUP(D5,C26:N77,12,0) -> 3529
C7: العنــــــــوان : | D7: =VLOOKUP($D$5,$C$26:$I$78,6,FALSE) -> دمياط | E7: =D7*C7 ->  | F7: =VLOOKUP($D$5,$C$26:$G$78,2,FALSE) -> 2110.5104 | G7: =F7*E7 ->  | H7: تليفون :
C8: تتقدم الشركة بكل الشكر لسيادتكم علي ما حققتموه من مسحوبات وتعاملات خلال الربع الاول من عام 2021
C9: متمنين من الله دوام التوفيق والنجاح .
C11: مرســــــل لسيادتـــكم مبــــلغ | F11: =VLOOKUP($D$5,$C$26:$G$78,2,FALSE) -> 2110.5104 | G11: =F11*E11 -> 0 | H11: فقط | J11: =Horof(F11) -> ألفان ومائة وعشرةة جنيه مصرى و 51قرش
D12: ضرائب | F12: =VLOOKUP($D$5,$C$26:$L$78,8,FALSE) -> 295.471456 | G12: =F12*E12 -> 0 | H12: فقط | J12: =Horof(F12) -> مئتان وخمسة وتسعون جنيه مصرى و 47قرش
C13: اجمالي المبلغ | F13: =VLOOKUP($D$5,$C$26:$L$78,9,FALSE) -> 2405.981856 | G13: =F13*E13 -> 0 | J13: =Horof(F13) -> ألفان وأربعمائة وخمسة جنيه مصرى و 98قرش
C14: وذلك قيمة مسحوبات بمبــــلغ | F14: =VLOOKUP($D$5,$C$26:$G$78,5,FALSE) -> 211051.04 | G14: =F14*E14 -> 0 | H14: قبل الضــــــــرائــب
C16: عن الفترة من 1 /7/ 2013 حتي 30 /9 / 2013 | D16: 2021-01-01 | E16: حتى | F16: 2021-03-31 | I16: نسبة الخصم حسب شريحة المسحوبات هى | L16: =VLOOKUP($D$5,$C$26:$G$78,3,FALSE) -> 0.01 | M16: =L16*K16 -> 0
C18: توقيع العميل بالاستلام | F18: توقيع القائم بالتسليم | J18: توقيع مشرف الفرع
C20: ............................................. | F20: ............................................. | J20: ................................................
C26: محمود البدراوي | D26: =G26*E26 -> 17826.283 | E26: 0.01 | G26: 1782628.3 | H26: دمياط | I26: 0.14 | J26: =I26*D26 -> 2495.67962 | K26: =D26+J26 -> 20321.96262 | N26: 10
C27: احمد عشرة | D27: =G27*E27 -> 3113.7172 | E27: 0.01 | G27: 311371.72 | H27: دمياط | I27: 0.14 | J27: =I27*D27 -> 435.920408 | K27: =D27+J27 -> 3549.637608 | N27: 18
C28: ابو عمار للتجارة | D28: 2110.5104 | E28: 0.01 | G28: 211051.04 | H28: دمياط | I28: 0.14 | J28: 295.471456 | K28: 2405.981856 | N28: 3529
C29: احمد عثمان | D29: 1873.9947 | E29: 0.01 | G29: 187399.47 | H29: دمياط | I29: 0.14 | J29: 262.359258 | K29: 2136.353958 | N29: 35
C30: عبد الحميد الشربيني-2 | D30: 1127.0255 | E30: 0.01 | G30: 112702.55 | H30: دمياط | I30: 0.14 | J30: 157.78357 | K30: 1284.80907 | N30: 2064
C31: صلاح ابو العنين | D31: 1024.5127 | E31: 0.01 | G31: 102451.27 | H31: دمياط | I31: 0.14 | J31: 143.431778 | K31: 1167.944478 | N31: 95
C32: نجمة سينا | D32: 991.0702 | E32: 0.01 | G32: 99107.02 | H32: بورسعيد | I32: 0.14 | J32: 138.749828 | K32: 1129.820028 | N32: 223
C33: محمد المليجي | D33: 937.2381 | E33: 0.01 | G33: 93723.81 | H33: بورسعيد | I33: 0.14 | J33: 131.213334 | K33: 1068.451434 | N33: 263
C34: تامر الريدي | D34: 905.945 | E34: 0.01 | G34: 90594.5 | H34: دمياط | I34: 0.14 | J34: 126.8323 | K34: 1032.7773 | N34: 19
C35: ايمن عبدالله | D35: 811.779 | E35: 0.01 | G35: 81177.9 | H35: بورسعيد | I35: 0.14 | J35: 113.64906 | K35: 925.42806 | N35: 291
C36: فتحي حجازي | D36: 746.5737 | E36: 0.01 | G36: 74657.37 | H36: بورسعيد | I36: 0.14 | J36: 104.520318 | K36: 851.094018 | N36: 210
C37: صلاح سريه | D37: 675.7879 | E37: 0.01 | G37: 67578.79 | H37: دمياط | I37: 0.14 | J37: 94.610306 | K37: 770.398206 | N37: 20
C38: شطا سنتر | D38: 669.8796 | E38: 0.01 | G38: 66987.96 | H38: بورسعيد | I38: 0.14 | J38: 93.783144 | K38: 763.662744 | N38: 352
C39: حسام حمدون | D39: 655.8485 | E39: 0.01 | G39: 65584.85 | H39: دمياط | I39: 0.14 | J39: 91.81879 | K39: 747.66729 | N39: 136
C40: ابراهيم غنيم-1 | D40: 649.5881 | E40: 0.01 | G40: 64958.81 | H40: بورسعيد | I40: 0.14 | J40: 90.942334 | K40: 740.530434 | N40: 209
C41: سامح عبدالله | D41: 647.2858 | E41: 0.01 | G41: 64728.58 | H41: بورسعيد | I41: 0.14 | J41: 90.620012 | K41: 737.905812 | N41: 205
C42: الايمان-1 | D42: 646.6937 | E42: 0.01 | G42: 64669.37 | H42: بورسعيد | I42: 0.14 | J42: 90.537118 | K42: 737.230818 | N42: 218
C43: محمد الدياسطي | D43: 604.5896 | E43: 0.01 | G43: 60458.96 | H43: دمياط | I43: 0.14 | J43: 84.642544 | K43: 689.232144 | N43: 6
C44: الجميل | D44: 602.5137 | E44: 0.01 | G44: 60251.37 | H44: دمياط | I44: 0.14 | J44: 84.351918 | K44: 686.865618 | N44: 8
C45: احمد الصعيدي | D45: 285.30125 | E45: 0.005 | G45: 57060.25 | H45: بورسعيد | I45: 0.14 | J45: 39.942175 | K45: 325.243425 | N45: 265
C46: الفردوس-1 | D46: 281.97025 | E46: 0.005 | G46: 56394.05 | H46: بورسعيد | I46: 0.14 | J46: 39.475835 | K46: 321.446085 | N46: 216
C47: محمود حجازي | D47: 253.88835 | E47: 0.005 | G47: 50777.67 | H47: بورسعيد | I47: 0.14 | J47: 35.544369 | K47: 289.432719 | N47: 230
C48: الهادى-1 | D48: 246.06615 | E48: 0.005 | G48: 49213.23 | H48: دمياط | I48: 0.14 | J48: 34.449261 | K48: 280.515411 | N48: 193
C49: جنة المؤمنين | D49: 243.257 | E49: 0.005 | G49: 48651.4 | H49: بورسعيد | I49: 0.14 | J49: 34.05598 | K49: 277.31298 | N49: 279
C50: شركة الفتح | D50: 209.14875 | E50: 0.005 | G50: 41829.75 | H50: دمياط | I50: 0.14 | J50: 29.280825 | K50: 238.429575 | N50: 164
C51: عبده الشافعي | D51: 208.5962 | E51: 0.005 | G51: 41719.24 | H51: دمياط | I51: 0.14 | J51: 29.203468 | K51: 237.799668 | N51: 11
C52: المنار-2 | D52: 198.1927 | E52: 0.005 | G52: 39638.54 | H52: دمياط | I52: 0.14 | J52: 27.746978 | K52: 225.939678 | N52: 23
C53: محمد صبح | D53: 170.0276 | E53: 0.005 | G53: 34005.52 | H53: بورسعيد | I53: 0.14 | J53: 23.803864 | K53: 193.831464 | N53: 275
C54: حمدون . عزبة البرج | D54: 167.98975 | E54: 0.005 | G54: 33597.95 | H54: دمياط | I54: 0.14 | J54: 23.518565 | K54: 191.508315 | N54: 65
C55: مكة-2 | D55: 164.7711 | E55: 0.005 | G55: 32954.22 | H55: بورسعيد | I55: 0.14 | J55: 23.067954 | K55: 187.839054 | N55: 217
C56: رفعت النجار | D56: 160.9904 | E56: 0.005 | G56: 32198.08 | H56: بورسعيد | I56: 0.14 | J56: 22.538656 | K56: 183.529056 | N56: 328
C57: محمد العربي-1 | D57: 157.36135 | E57: 0.005 | G57: 31472.27 | H57: بورسعيد | I57: 0.14 | J57: 22.030589 | K57: 179.391939 | N57: 204
C58: شركة النور | D58: 157.28475 | E58: 0.005 | G58: 31456.95 | H58: بورسعيد | I58: 0.14 | J58: 22.019865 | K58: 179.304615 | N58: 211
C59: رفعت عبد الله | D59: 156.197 | E59: 0.005 | G59: 31239.4 | H59: دمياط | I59: 0.14 | J59: 21.86758 | K59: =D59+J59 -> 178.06458 | N59: 3258
C60: اولاد خالد رجب | D60: 154.82115 | E60: 0.005 | G60: 30964.23 | H60: دمياط | I60: 0.14 | J60: 21.674961 | K60: 176.496111 | N60: 127
C61: حراز | D61: 150.29455 | E61: 0.005 | G61: 30058.91 | H61: بورسعيد | I61: 0.14 | J61: 21.041237 | K61: 171.335787 | N61: 215
C62: عوض عبود | D62: 150.0938 | E62: 0.005 | G62: 30018.76 | H62: دمياط | I62: 0.14 | J62: 21.013132 | K62: 171.106932 | N62: 82
C63: سوبر ماركت الفار | D63: 2974.9883 | E63: 0.01 | G63: 297498.83 | H63: بورسعيد | I63: 0.14 | J63: 416.498362 | K63: 3391.486662 | N63: 3127
C64: هايبر المدينة 00 | D64: 1418.5962 | E64: 0.01 | G64: 141859.62 | H64: دمياط | I64: 0.14 | J64: 198.603468 | K64: 1617.199668 | N64: 3129
C65: سوبر ماركت جويده | D65: 478.787 | E65: 0.005 | G65: 95757.4 | H65: دمياط | I65: 0.14 | J65: 67.03018 | K65: 545.81718 | N65: 3133
C66: ماركت عبده ابو العنين | D66: 161.5799 | E66: 0.005 | G66: 32315.98 | H66: دمياط | I66: 0.14 | J66: 22.621186 | K66: 184.201086 | N66: 3132
C67: ماركت الحرمين | D67: 160.98085 | E67: 0.005 | G67: 32196.17 | H67: بورسعيد | I67: 0.14 | J67: 22.537319 | K67: 183.518169 | N67: 3163
D68: 0 | E68: 0.005 | H68: بورسعيد | I68: 0.14 | J68: 0 | K68: 0
D69: 0 | E69: 0.005 | H69: بورسعيد | I69: 0.14 | J69: 0 | K69: 0
D70: 0 | E70: 0.005 | H70: بورسعيد | I70: 0.14 | J70: 0 | K70: 0
D71: 0 | E71: 0.005 | H71: بورسعيد | I71: 0.14 | J71: 0 | K71: 0
D72: 0 | E72: 0.01 | H72: بورسعيد | I72: 0.14 | J72: 0 | K72: =D72+J72 -> 0
D73: 0 | E73: 0.01 | H73: دمياط | I73: 0.14 | J73: 0 | K73: 0
D74: 0 | E74: 0.01 | H74: دمياط | I74: 0.14 | J74: 0 | K74: 0
D75: 0 | E75: 0.005 | H75: بورسعيد | I75: 0.14 | J75: 0 | K75: 0
D76: 0 | E76: 0.005 | H76: دمياط | I76: 0.14 | J76: 0 | K76: 0
D77: 0 | E77: 0.005 | H77: دمياط | I77: 0.14 | J77: 0 | K77: 0
L78: =SUM(K26:L77) -> 51678.50366
J80: =L78 -> 51678.50366

Sheet ورقة1 (hidden)
A2: مسسلسل | B2: اسم العميل | D2: إجمالي قيمة المسحوبات | E2: إجمالي قيمة المسحوبات | F2: حافز الربع | H2: مسحوبات الربع الأول 2007 | I2: نسبة النمو
F3: الشريحة | G3: القيمة
A4: 1 | B4: محمود البدراوي | D4: 809054 | E4: 809054 | F4: 0.01 | G4: 8090.54 | I4: =(D4-H4)/H4 -> 
A5: 2 | B5: نجمة سينا | D5: 96117.18 | E5: 96117.18 | F5: 0.01 | G5: 961.1718 | I5: =(D5-H5)/H5 -> 
A6: 3 | B6: محمد الدياسطي | D6: 87756.39 | E6: 87756.39 | F6: 0.01 | G6: 877.5639
A7: 4 | B7: تامر الريدي | D7: 71421.44 | E7: 71421.44 | F7: 0.01 | G7: 714.2144
A8: 5 | B8: احمد عشرة | D8: 70019.55 | E8: 70019.55 | F8: 0.01 | G8: 700.1955
A9: 6 | B9: شركة الفار | D9: 60016.24 | E9: 60016.24 | F9: 0.01 | G9: 600.1624
A10: 7 | B10: الجميل | D10: 56936.38 | E10: 56936.38 | F10: 0.01 | G10: 569.3638
A11: 8 | B11: ايمن عبدالله | D11: 55011.44 | E11: 55011.44 | F11: 0.01 | G11: 550.1144
A12: 9 | B12: فتحي حجازي | D12: 50674.05 | E12: 50674.05 | F12: 0.01 | G12: 506.7405
A13: 10 | B13: احمد رزق | D13: 49261.18 | E13: 49261.18 | F13: 0.005 | G13: 246.3059
A14: 11 | B14: محمد سعده | D14: 43944.69 | E14: 43944.69 | F14: 0.005 | G14: 219.72345
A15: 12 | B15: الحسن والحسين | D15: 41638.67 | E15: 41638.67 | F15: 0.005 | G15: 208.19335
A16: 13 | B16: اسامة شرة | D16: 36899.38 | E16: 36899.38 | F16: 0.005 | G16: 184.4969
A17: 14 | B17: حمدون . عزبة البرج | D17: 33777.32 | E17: 33777.32 | F17: 0.005 | G17: 168.8866
A18: 15 | B18: عبد الحميد الشربيني | D18: 32097.4 | E18: 32097.4 | F18: 0.005 | G18: 160.487
A19: 16 | B19: عبده ابو العنين | D19: 30716.88 | E19: 30716.88 | F19: 0.005 | G19: 153.5844
A20: 17 | B20: صلاح ابو العنين | D20: 30144.2 | E20: 30144.2 | F20: 0.005 | G20: 150.721
A21: 18
A22: 19
A23: 20
A24: 21
A25: 22
A26: 23
A27: 24
A28: 25
A29: 26
A30: 27
A31: 28
A32: 29
A33: 30
A34: 31
A35: 32
A36: 33
A37: 34
A38: 35
A39: 36
A40: 37
A41: 38
A42: 39
A43: 40
A44: 41
A45: 42
A46: 43
A47: 44
A48: 45
A49: 46
A50: 47
A51: 48
A52: 49
A53: 50
A54: 51
A55: 52
A56: 53
A57: 54
A58: 55
A59: 56
D254: =SUM(D4:D253) -> 1655486.39 | E254: =SUM(E4:E253) -> 1655486.39 | F254: =IF(ISERROR(G254/E254),"-",G254/E254) -> 0.009098513519 | G254: =SUM(G4:G253) -> 15062.4653 | H254: =SUM(H4:H253) -> 0 | I254: =(D254-H254)/H254 -> 

Sheet الفروتي (hidden)
E3: اشعار خصم حافز مسحوبات فروتي مركز
C5: العميـــــــل : | D5: =C17 -> نجمة سيناء
C7: العنــــــــوان : | H7: تليفون :
C8: تتقدم شركة دريم بكل الشكر لسيادتكم علي ما حققتموه من مسحوبات وتعاملات خلال الربع الاول من عام 2013
C9: متمنين من الله دوام التوفيق والنجاح .
C11: مرســــــل لسيادتـــكم مبــــلغ | F11: =I18 -> 131 | H11: فقط | J11: =Horof(F11) -> مائة وواحد وثلاثون جنيه مصرى
C13: وذلك لتحقيق شريحة 250كرتونة مسحوبات 0
D15: 0.01 | F15: 0.0075 | I15: 0.005
C16: اسم العميل | D16: مسحوبات يناير | E16: قيمة الخصم | F16: مسحوبات فبراير | G16: قيمة الخصم | I16: مسحوبات مارس 175 كرتونة
C17: نجمة سيناء | D17: 0 | F17: 75 | G17: 51.3 | I17: قيمة خصم مارس 79.7جنية
F18: اجمالي الخصم | I18: 131
C20: توقيع العميل بالاستلام | F20: توقيع القائم بالتسليم | J20: توقيع مشرف الفرع
C22: ............................................. | F22: ............................................. | J22: ................................................
C28: =ورقة1!B4 -> محمود البدراوي
C29: =ورقة1!B5 -> نجمة سينا
C30: =ورقة1!B6 -> محمد الدياسطي
C31: =ورقة1!B7 -> تامر الريدي
C32: =ورقة1!B8 -> احمد عشرة
C33: =ورقة1!B9 -> شركة الفار
C34: =ورقة1!B10 -> الجميل
C35: =ورقة1!B11 -> ايمن عبدالله
C36: =ورقة1!B12 -> فتحي حجازي
C37: =ورقة1!B13 -> احمد رزق
C38: =ورقة1!B14 -> محمد سعده
C39: =ورقة1!B15 -> الحسن والحسين
C40: =ورقة1!B16 -> اسامة شرة
C41: =ورقة1!B17 -> حمدون . عزبة البرج
C42: =ورقة1!B18 -> عبد الحميد الشربيني
C43: =ورقة1!B19 -> عبده ابو العنين
C44: =ورقة1!B20 -> صلاح ابو العنين
C45: =ورقة1!B21 -> 0
C46: =ورقة1!B22 -> 0
C47: =ورقة1!B23 -> 0
C48: =ورقة1!B24 -> 0
C49: =ورقة1!B25 -> 0
C50: =ورقة1!B26 -> 0
C51: =ورقة1!B27 -> 0
C52: =ورقة1!B28 -> 0
C53: =ورقة1!B29 -> 0
C54: =ورقة1!B30 -> 0
C55: =ورقة1!B31 -> 0
C56: =ورقة1!B32 -> 0
C57: =ورقة1!B33 -> 0
C58: =ورقة1!B34 -> 0
C59: =ورقة1!B35 -> 0
C60: =ورقة1!B36 -> 0
C61: =ورقة1!B37 -> 0
C62: =ورقة1!B38 -> 0
C63: =ورقة1!B39 -> 0
C64: =ورقة1!B40 -> 0
C65: =ورقة1!B41 -> 0
C66: =ورقة1!B42 -> 0
C67: =ورقة1!B43 -> 0
C68: =ورقة1!B44 -> 0
C69: =ورقة1!B45 -> 0
C70: =ورقة1!B46 -> 0
C71: =ورقة1!B47 -> 0
C72: =ورقة1!B48 -> 0
C73: =ورقة1!B49 -> 0
C74: =ورقة1!B50 -> 0
C75: =ورقة1!B51 -> 0
C76: =ورقة1!B52 -> 0
C77: =ورقة1!B53 -> 0
C78: =ورقة1!B54 -> 0
C79: =ورقة1!B55 -> 0
C80: =ورقة1!B56 -> 0
C81: =ورقة1!B57 -> 0
C82: =ورقة1!B58 -> 0
C83: =ورقة1!B59 -> 0

Sheet الربع (2) (hidden)
D2: متابعة صرف حافز
B4: اســـــــــم التوكـــــيل | F4: اجمالي الحوافز التي تم صرفها
B5: نــــــوع الحـــــــــافز | F5: =N160 -> 150.0177
B6: عــــام | F6: باقي الحوافز التي لم يتم صرفها
B7: شـهر | F7: =D160-F5 -> 29799.04005
B9: م | C9: اسم العميل | D9: قيمة الحافز | E9: ???? | F9: مؤشر الصرف
B10: 1 | C10: محمود البدراوي | D10: 9627.6066 | F10: =IF(D10=0,0,J10) -> 0 | I10: =IF(E10=$HA$10,L10,M10) -> لم يتم الصرف | J10: =IF(E10=0,0,I10) -> 0 | L10: تم الصرف | M10: لم يتم الصرف | N10: =IF(E10=$HA$10,D10,0) -> 0 | HA10: a
B11: 2 | C11: سوبر ماركت الفار | D11: 2058.4633 | F11: 0 | I11: لم يتم الصرف | J11: 0 | L11: تم الصرف | M11: لم يتم الصرف | N11: =IF(E11=$HA$10,D11,0) -> 0 | HA11: r
B12: 3 | C12: هايبر المدينة 00 | D12: 2009.1768 | F12: 0 | I12: لم يتم الصرف | J12: 0 | L12: تم الصرف | M12: لم يتم الصرف | N12: 0
B13: 4 | C13: احمد عشرة | D13: 1287.0288 | F13: 0 | I13: لم يتم الصرف | J13: 0 | L13: تم الصرف | M13: لم يتم الصرف | N13: 0
B14: 5 | C14: محمد الدياسطي | D14: 793.3979 | F14: 0 | I14: لم يتم الصرف | J14: 0 | L14: تم الصرف | M14: لم يتم الصرف | N14: 0
B15: 6 | C15: احمد عثمان | D15: 748.8479 | F15: 0 | I15: لم يتم الصرف | J15: 0 | L15: تم الصرف | M15: لم يتم الصرف | N15: 0
B16: 7 | C16: فتحي حجازي | D16: 699.1224 | F16: 0 | I16: لم يتم الصرف | J16: 0 | L16: تم الصرف | M16: لم يتم الصرف | N16: 0
B17: 8 | C17: تامر الريدي | D17: 658.9907 | F17: 0 | I17: لم يتم الصرف | J17: 0 | L17: تم الصرف | M17: لم يتم الصرف | N17: 0
B18: 9 | C18: محمد المليجي | D18: 655.6307 | F18: 0 | I18: لم يتم الصرف | J18: 0 | L18: تم الصرف | M18: لم يتم الصرف | N18: 0
B19: 10 | C19: الجميل | D19: 650.4632 | F19: 0 | I19: لم يتم الصرف | J19: 0 | L19: تم الصرف | M19: لم يتم الصرف | N19: 0
B20: 11 | C20: الفردوس-1 | D20: 611.5322 | F20: 0 | I20: لم يتم الصرف | J20: 0 | L20: تم الصرف | M20: لم يتم الصرف | N20: 0
B21: 12 | C21: عبد الحميد الشربيني-2 | D21: 604.1685 | F21: 0 | I21: لم يتم الصرف | J21: 0 | L21: تم الصرف | M21: لم يتم الصرف | N21: 0
B22: 13 | C22: ايمن عبدالله | D22: 247.71415 | F22: 0 | I22: لم يتم الصرف | J22: 0 | L22: تم الصرف | M22: لم يتم الصرف | N22: 0
B23: 14 | C23: جنة المؤمنين | D23: 209.6355 | F23: 0 | I23: لم يتم الصرف | J23: 0 | L23: تم الصرف | M23: لم يتم الصرف | N23: 0
B24: 15 | C24: حسام حمدون | D24: 203.50275 | F24: 0 | I24: لم يتم الصرف | J24: 0 | L24: تم الصرف | M24: لم يتم الصرف | N24: 0
B25: 16 | C25: صلاح ابو العنين | D25: 198.6184 | F25: 0 | I25: لم يتم الصرف | J25: 0 | L25: تم الصرف | M25: لم يتم الصرف | N25: 0
B26: 17 | C26: محمود حجازي | D26: 196.26435 | F26: 0 | I26: لم يتم الصرف | J26: 0 | L26: تم الصرف | M26: لم يتم الصرف | N26: 0
B27: 18 | C27: نجمة سينا | D27: 194.4198 | F27: 0 | I27: لم يتم الصرف | J27: 0 | L27: تم الصرف | M27: لم يتم الصرف | N27: 0
B28: 19 | C28: سامح عبدالله | D28: 191.8671 | F28: 0 | I28: لم يتم الصرف | J28: 0 | L28: تم الصرف | M28: لم يتم الصرف | N28: 0
B29: 20 | C29: شطا سنتر | D29: 183.0344 | F29: 0 | I29: لم يتم الصرف | J29: 0 | L29: تم الصرف | M29: لم يتم الصرف | N29: 0
B30: 21 | C30: الايمان-1 | D30: 161.20065 | F30: 0 | I30: لم يتم الصرف | J30: 0 | L30: تم الصرف | M30: لم يتم الصرف | N30: 0
B31: 22 | C31: صلاح سريه | D31: 159.9785 | F31: 0 | I31: لم يتم الصرف | J31: 0 | L31: تم الصرف | M31: لم يتم الصرف | N31: 0
B32: 23 | C32: عبده الشافعي | D32: 158.9055 | F32: 0 | I32: لم يتم الصرف | J32: 0 | L32: تم الصرف | M32: لم يتم الصرف | N32: 0
B33: 24 | C33: المدينة المنورة-1 | D33: 153.86085 | F33: 0 | I33: لم يتم الصرف | J33: 0 | L33: تم الصرف | M33: لم يتم الصرف | N33: 0
B34: 25 | C34: مكة-2 | D34: 152.6527 | F34: 0 | I34: لم يتم الصرف | J34: 0 | L34: تم الصرف | M34: لم يتم الصرف | N34: 0
B35: 26 | C35: حمدون . عزبة البرج | D35: 150.0177 | E35: a | F35: تم الصرف | I35: تم الصرف | J35: تم الصرف | L35: تم الصرف | M35: لم يتم الصرف | N35: 150.0177
B36: 27 | C36: =الربع!C52 -> المنار-2 | D36: =الربع!D52 -> 198.1927 | F36: 0 | I36: لم يتم الصرف | J36: 0 | L36: تم الصرف | M36: لم يتم الصرف | N36: 0
B37: 28 | C37: =الربع!C53 -> محمد صبح | D37: =الربع!D53 -> 170.0276 | F37: 0 | I37: لم يتم الصرف | J37: 0 | L37: تم الصرف | M37: لم يتم الصرف | N37: 0
B38: 29 | C38: =الربع!C54 -> حمدون . عزبة البرج | D38: =الربع!D54 -> 167.98975 | F38: 0 | I38: لم يتم الصرف | J38: 0 | L38: تم الصرف | M38: لم يتم الصرف | N38: 0
B39: 30 | C39: =الربع!C55 -> مكة-2 | D39: =الربع!D55 -> 164.7711 | F39: 0 | I39: لم يتم الصرف | J39: 0 | L39: تم الصرف | M39: لم يتم الصرف | N39: 0
B40: 31 | C40: =الربع!C56 -> رفعت النجار | D40: =الربع!D56 -> 160.9904 | F40: 0 | I40: لم يتم الصرف | J40: 0 | L40: تم الصرف | M40: لم يتم الصرف | N40: 0
B41: 32 | C41: =الربع!C57 -> محمد العربي-1 | D41: =الربع!D57 -> 157.36135 | F41: 0 | I41: لم يتم الصرف | J41: 0 | L41: تم الصرف | M41: لم يتم الصرف | N41: 0
B42: 33 | C42: =الربع!C58 -> شركة النور | D42: =الربع!D58 -> 157.28475 | F42: =IF(D42=0,0,J42) -> 0 | I42: =IF(E42=$HA$10,L42,M42) -> لم يتم الصرف | J42: =IF(E42=0,0,I42) -> 0 | L42: تم الصرف | M42: لم يتم الصرف | N42: 0
B43: 34 | C43: =الربع!C59 -> رفعت عبد الله | D43: =الربع!D59 -> 156.197 | F43: 0 | I43: لم يتم الصرف | J43: 0 | L43: تم الصرف | M43: لم يتم الصرف | N43: 0
B44: 35 | C44: =الربع!C60 -> اولاد خالد رجب | D44: =الربع!D60 -> 154.82115 | F44: 0 | I44: لم يتم الصرف | J44: 0 | L44: تم الصرف | M44: لم يتم الصرف | N44: 0
B45: 36 | C45: =الربع!C61 -> حراز | D45: =الربع!D61 -> 150.29455 | F45: 0 | I45: لم يتم الصرف | J45: 0 | L45: تم الصرف | M45: لم يتم الصرف | N45: 0
B46: 37 | C46: =الربع!C62 -> عوض عبود | D46: =الربع!D62 -> 150.0938 | F46: 0 | I46: لم يتم الصرف | J46: 0 | L46: تم الصرف | M46: لم يتم الصرف | N46: 0
B47: 38 | C47: =الربع!C63 -> سوبر ماركت الفار | D47: =الربع!D63 -> 2974.9883 | F47: 0 | I47: لم يتم الصرف | J47: 0 | L47: تم الصرف | M47: لم يتم الصرف | N47: 0
B48: 39 | C48: =الربع!C64 -> هايبر المدينة 00 | D48: =الربع!D64 -> 1418.5962 | F48: 0 | I48: لم يتم الصرف | J48: 0 | L48: تم الصرف | M48: لم يتم الصرف | N48: 0
B49: 40 | C49: =الربع!C65 -> سوبر ماركت جويده | D49: =الربع!D65 -> 478.787 | F49: 0 | I49: لم يتم الصرف | J49: 0 | L49: تم الصرف | M49: لم يتم الصرف | N49: 0
B50: 41 | C50: =الربع!C66 -> ماركت عبده ابو العنين | D50: =الربع!D66 -> 161.5799 | F50: 0 | I50: لم يتم الصرف | J50: 0 | L50: تم الصرف | M50: لم يتم الصرف | N50: 0
B51: 42 | C51: =الربع!C67 -> ماركت الحرمين | D51: =الربع!D67 -> 160.98085 | F51: 0 | I51: لم يتم الصرف | J51: 0 | L51: تم الصرف | M51: لم يتم الصرف | N51: 0
B52: 43 | C52: =الربع!C68 -> 0 | D52: =الربع!D68 -> 0 | F52: 0 | I52: لم يتم الصرف | J52: 0 | L52: تم الصرف | M52: لم يتم الصرف | N52: 0
B53: 44 | C53: =الربع!C69 -> 0 | D53: =الربع!D69 -> 0 | F53: 0 | I53: لم يتم الصرف | J53: 0 | L53: تم الصرف | M53: لم يتم الصرف | N53: 0
B54: 45 | C54: =الربع!C70 -> 0 | D54: =الربع!D70 -> 0 | F54: 0 | I54: لم يتم الصرف | J54: 0 | L54: تم الصرف | M54: لم يتم الصرف | N54: 0
B55: 46 | C55: =الربع!C71 -> 0 | D55: =الربع!D71 -> 0 | F55: 0 | I55: لم يتم الصرف | J55: 0 | L55: تم الصرف | M55: لم يتم الصرف | N55: 0
B56: 47 | C56: =الربع!C72 -> 0 | D56: =الربع!D72 -> 0 | F56: 0 | I56: لم يتم الصرف | J56: 0 | L56: تم الصرف | M56: لم يتم الصرف | N56: 0
B57: 48 | C57: =الربع!C73 -> 0 | D57: =الربع!D73 -> 0 | F57: 0 | I57: لم يتم الصرف | J57: 0 | L57: تم الصرف | M57: لم يتم الصرف | N57: 0
B58: 49 | C58: =الربع!C74 -> 0 | D58: =الربع!D74 -> 0 | F58: 0 | I58: لم يتم الصرف | J58: 0 | L58: تم الصرف | M58: لم يتم الصرف | N58: 0
B59: 50 | C59: =الربع!C75 -> 0 | D59: =الربع!D75 -> 0 | F59: 0 | I59: لم يتم الصرف | J59: 0 | L59: تم الصرف | M59: لم يتم الصرف | N59: 0
B60: 51 | C60: =الربع!C76 -> 0 | D60: =الربع!D76 -> 0 | F60: 0 | I60: لم يتم الصرف | J60: 0 | L60: تم الصرف | M60: لم يتم الصرف | N60: 0
B61: 52 | C61: =الربع!C77 -> 0 | D61: =الربع!D77 -> 0 | F61: 0 | I61: لم يتم الصرف | J61: 0 | L61: تم الصرف | M61: لم يتم الصرف | N61: 0
B62: 53 | C62: =الربع!C78 -> 0 | D62: =الربع!D78 -> 0 | F62: 0 | I62: لم يتم الصرف | J62: 0 | L62: تم الصرف | M62: لم يتم الصرف | N62: 0
B63: 54 | C63: =الربع!C79 -> 0 | D63: =الربع!D79 -> 0 | F63: 0 | I63: لم يتم الصرف | J63: 0 | L63: تم الصرف | M63: لم يتم الصرف | N63: 0
B64: 55 | C64: =الربع!C80 -> 0 | D64: =الربع!D80 -> 0 | F64: 0 | I64: لم يتم الصرف | J64: 0 | L64: تم الصرف | M64: لم يتم الصرف | N64: 0
B65: 56 | C65: =الربع!C81 -> 0 | D65: =الربع!D81 -> 0 | F65: 0 | I65: لم يتم الصرف | J65: 0 | L65: تم الصرف | M65: لم يتم الصرف | N65: 0
B66: 57 | C66: =الربع!C82 -> 0 | D66: =الربع!D82 -> 0 | F66: 0 | I66: لم يتم الصرف | J66: 0 | L66: تم الصرف | M66: لم يتم الصرف | N66: 0 | HA66: a
B67: 58 | C67: =الربع!C83 -> 0 | D67: =الربع!D83 -> 0 | F67: 0 | I67: لم يتم الصرف | J67: 0 | L67: تم الصرف | M67: لم يتم الصرف | N67: 0 | HA67: r
B68: 59 | C68: =الربع!C84 -> 0 | D68: =الربع!D84 -> 0 | F68: 0 | I68: لم يتم الصرف | J68: 0 | L68: تم الصرف | M68: لم يتم الصرف | N68: 0
B69: 60 | C69: =الربع!C85 -> 0 | D69: =الربع!D85 -> 0 | F69: 0 | I69: لم يتم الصرف | J69: 0 | L69: تم الصرف | M69: لم يتم الصرف | N69: 0
B70: 61 | C70: =الربع!C86 -> 0 | D70: =الربع!D86 -> 0 | F70: 0 | I70: لم يتم الصرف | J70: 0 | L70: تم الصرف | M70: لم يتم الصرف | N70: 0
B71: 62 | C71: =الربع!C87 -> 0 | D71: =الربع!D87 -> 0 | F71: 0 | I71: لم يتم الصرف | J71: 0 | L71: تم الصرف | M71: لم يتم الصرف | N71: 0
B72: 63 | C72: =الربع!C88 -> 0 | D72: =الربع!D88 -> 0 | F72: 0 | I72: لم يتم الصرف | J72: 0 | L72: تم الصرف | M72: لم يتم الصرف | N72: 0
B73: 64 | C73: =الربع!C89 -> 0 | D73: =الربع!D89 -> 0 | F73: 0 | I73: لم يتم الصرف | J73: 0 | L73: تم الصرف | M73: لم يتم الصرف | N73: 0
B74: 65 | C74: =الربع!C90 -> 0 | D74: =الربع!D90 -> 0 | F74: =IF(D74=0,0,J74) -> 0 | I74: =IF(E74=$HA$10,L74,M74) -> لم يتم الصرف | J74: =IF(E74=0,0,I74) -> 0 | L74: تم الصرف | M74: لم يتم الصرف | N74: 0
B75: 66 | C75: =الربع!C91 -> 0 | D75: =الربع!D91 -> 0 | F75: 0 | I75: لم يتم الصرف | J75: 0 | L75: تم الصرف | M75: لم يتم الصرف | N75: =IF(E75=$HA$10,D75,0) -> 0
B76: 67 | C76: =الربع!C92 -> 0 | D76: =الربع!D92 -> 0 | F76: 0 | I76: لم يتم الصرف | J76: 0 | L76: تم الصرف | M76: لم يتم الصرف | N76: 0
B77: 68 | C77: =الربع!C93 -> 0 | D77: =الربع!D93 -> 0 | F77: 0 | I77: لم يتم الصرف | J77: 0 | L77: تم الصرف | M77: لم يتم الصرف | N77: 0
B78: 69 | C78: =الربع!C94 -> 0 | D78: =الربع!D94 -> 0 | F78: 0 | I78: لم يتم الصرف | J78: 0 | L78: تم الصرف | M78: لم يتم الصرف | N78: 0
B79: 70 | C79: =الربع!C95 -> 0 | D79: =الربع!D95 -> 0 | F79: 0 | I79: لم يتم الصرف | J79: 0 | L79: تم الصرف | M79: لم يتم الصرف | N79: 0
B80: 71 | C80: =الربع!C96 -> 0 | D80: =الربع!D96 -> 0 | F80: 0 | I80: لم يتم الصرف | J80: 0 | L80: تم الصرف | M80: لم يتم الصرف | N80: 0
B81: 72 | C81: =الربع!C97 -> 0 | D81: =الربع!D97 -> 0 | F81: 0 | I81: لم يتم الصرف | J81: 0 | L81: تم الصرف | M81: لم يتم الصرف | N81: 0
B82: 73 | C82: =الربع!C98 -> 0 | D82: =الربع!D98 -> 0 | F82: 0 | I82: لم يتم الصرف | J82: 0 | L82: تم الصرف | M82: لم يتم الصرف | N82: 0
B83: 74 | C83: =الربع!C99 -> 0 | D83: =الربع!D99 -> 0 | F83: 0 | I83: لم يتم الصرف | J83: 0 | L83: تم الصرف | M83: لم يتم الصرف | N83: 0
B84: 75 | C84: =ورقة1!B78 -> 0 | D84: =الربع!D100 -> 0 | F84: 0 | I84: لم يتم الصرف | J84: 0 | L84: تم الصرف | M84: لم يتم الصرف | N84: 0
B85: 76 | C85: =ورقة1!B79 -> 0 | D85: =الربع!D101 -> 0 | F85: 0 | I85: لم يتم الصرف | J85: 0 | L85: تم الصرف | M85: لم يتم الصرف | N85: 0
B86: 77 | C86: =ورقة1!B80 -> 0 | D86: =الربع!D102 -> 0 | F86: 0 | I86: لم يتم الصرف | J86: 0 | L86: تم الصرف | M86: لم يتم الصرف | N86: 0
B87: 78 | C87: =ورقة1!B60 -> 0 | D87: =الربع!D103 -> 0 | F87: 0 | I87: لم يتم الصرف | J87: 0 | L87: تم الصرف | M87: لم يتم الصرف | N87: 0
B88: 79 | C88: =ورقة1!B61 -> 0 | D88: =الربع!D104 -> 0 | F88: 0 | I88: لم يتم الصرف | J88: 0 | L88: تم الصرف | M88: لم يتم الصرف | N88: 0
B89: 80 | C89: =ورقة1!B62 -> 0 | D89: =الربع!D105 -> 0 | F89: 0 | I89: لم يتم الصرف | J89: 0 | L89: تم الصرف | M89: لم يتم الصرف | N89: 0
B90: 81 | C90: =ورقة1!B63 -> 0 | D90: =الربع!D106 -> 0 | F90: 0 | I90: لم يتم الصرف | J90: 0 | L90: تم الصرف | M90: لم يتم الصرف | N90: 0
B91: 82 | C91: =ورقة1!B64 -> 0 | D91: =الربع!D107 -> 0 | F91: 0 | I91: لم يتم الصرف | J91: 0 | L91: تم الصرف | M91: لم يتم الصرف | N91: 0
B92: 83 | C92: =ورقة1!B65 -> 0 | D92: =الربع!D108 -> 0 | F92: 0 | I92: لم يتم الصرف | J92: 0 | L92: تم الصرف | M92: لم يتم الصرف | N92: 0
B93: 84 | C93: =ورقة1!B66 -> 0 | D93: =الربع!D109 -> 0 | F93: 0 | I93: لم يتم الصرف | J93: 0 | L93: تم الصرف | M93: لم يتم الصرف | N93: 0
B94: 85 | C94: =ورقة1!B67 -> 0 | D94: =الربع!D110 -> 0 | F94: 0 | I94: لم يتم الصرف | J94: 0 | L94: تم الصرف | M94: لم يتم الصرف | N94: 0
B95: 86 | C95: =ورقة1!B68 -> 0 | D95: =الربع!D111 -> 0 | F95: 0 | I95: لم يتم الصرف | J95: 0 | L95: تم الصرف | M95: لم يتم الصرف | N95: 0
B96: 87 | C96: =ورقة1!B69 -> 0 | D96: =الربع!D112 -> 0 | F96: 0 | I96: لم يتم الصرف | J96: 0 | L96: تم الصرف | M96: لم يتم الصرف | N96: 0
B97: 88 | C97: =ورقة1!B70 -> 0 | D97: =الربع!D113 -> 0 | F97: 0 | I97: لم يتم الصرف | J97: 0 | L97: تم الصرف | M97: لم يتم الصرف | N97: 0
B98: 89 | C98: =ورقة1!B71 -> 0 | D98: =الربع!D114 -> 0 | F98: 0 | I98: لم يتم الصرف | J98: 0 | L98: تم الصرف | M98: لم يتم الصرف | N98: 0
B99: 90 | C99: =ورقة1!B72 -> 0 | D99: =الربع!D115 -> 0 | F99: 0 | I99: لم يتم الصرف | J99: 0 | L99: تم الصرف | M99: لم يتم الصرف | N99: 0
B100: 91 | C100: =ورقة1!B73 -> 0 | D100: =الربع!D116 -> 0 | F100: 0 | I100: لم يتم الصرف | J100: 0 | L100: تم الصرف | M100: لم يتم الصرف | N100: 0
B101: 92 | C101: =ورقة1!B74 -> 0 | D101: =الربع!D117 -> 0 | F101: 0 | I101: لم يتم الصرف | J101: 0 | L101: تم الصرف | M101: لم يتم الصرف | N101: 0
B102: 93 | C102: =ورقة1!B75 -> 0 | D102: =الربع!D118 -> 0 | F102: 0 | I102: لم يتم الصرف | J102: 0 | L102: تم الصرف | M102: لم يتم الصرف | N102: 0
B103: 94 | C103: =ورقة1!B76 -> 0 | D103: =الربع!D119 -> 0 | F103: 0 | I103: لم يتم الصرف | J103: 0 | L103: تم الصرف | M103: لم يتم الصرف | N103: 0
B104: 95 | C104: =ورقة1!B77 -> 0 | D104: =الربع!D120 -> 0 | F104: 0 | I104: لم يتم الصرف | J104: 0 | L104: تم الصرف | M104: لم يتم الصرف | N104: 0
B105: 96 | C105: =ورقة1!B78 -> 0 | D105: =الربع!D121 -> 0 | F105: 0 | I105: لم يتم الصرف | J105: 0 | L105: تم الصرف | M105: لم يتم الصرف | N105: 0
B106: 97 | C106: =ورقة1!B79 -> 0 | D106: =الربع!D122 -> 0 | F106: =IF(D106=0,0,J106) -> 0 | I106: =IF(E106=$HA$10,L106,M106) -> لم يتم الصرف | J106: =IF(E106=0,0,I106) -> 0 | L106: تم الصرف | M106: لم يتم الصرف | N106: 0
B107: 98 | C107: =ورقة1!B80 -> 0 | D107: =الربع!D123 -> 0 | F107: 0 | I107: لم يتم الصرف | J107: 0 | L107: تم الصرف | M107: لم يتم الصرف | N107: 0
B108: 99 | C108: =ورقة1!B81 -> 0 | D108: =الربع!D124 -> 0 | F108: 0 | I108: لم يتم الصرف | J108: 0 | L108: تم الصرف | M108: لم يتم الصرف | N108: 0
B109: 100 | C109: =ورقة1!B82 -> 0 | D109: =الربع!D125 -> 0 | F109: 0 | I109: لم يتم الصرف | J109: 0 | L109: تم الصرف | M109: لم يتم الصرف | N109: 0
B110: 101 | C110: =ورقة1!B83 -> 0 | D110: =الربع!D126 -> 0 | F110: 0 | I110: لم يتم الصرف | J110: 0 | L110: تم الصرف | M110: لم يتم الصرف | N110: 0
B111: 102 | C111: =ورقة1!B84 -> 0 | D111: =الربع!D127 -> 0 | F111: 0 | I111: لم يتم الصرف | J111: 0 | L111: تم الصرف | M111: لم يتم الصرف | N111: 0
B112: 103 | C112: =ورقة1!B85 -> 0 | D112: =الربع!D128 -> 0 | F112: 0 | I112: لم يتم الصرف | J112: 0 | L112: تم الصرف | M112: لم يتم الصرف | N112: 0
B113: 104 | C113: =ورقة1!B86 -> 0 | D113: =الربع!D129 -> 0 | F113: 0 | I113: لم يتم الصرف | J113: 0 | L113: تم الصرف | M113: لم يتم الصرف | N113: 0
B114: 105 | C114: =ورقة1!B87 -> 0 | D114: =الربع!D130 -> 0 | F114: 0 | I114: لم يتم الصرف | J114: 0 | L114: تم الصرف | M114: لم يتم الصرف | N114: 0
B115: 106 | C115: =ورقة1!B88 -> 0 | D115: =الربع!D131 -> 0 | F115: 0 | I115: لم يتم الصرف | J115: 0 | L115: تم الصرف | M115: لم يتم الصرف | N115: 0
B116: 107 | C116: =ورقة1!B89 -> 0 | D116: =الربع!D132 -> 0 | F116: 0 | I116: لم يتم الصرف | J116: 0 | L116: تم الصرف | M116: لم يتم الصرف | N116: 0
B117: 108 | C117: =ورقة1!B90 -> 0 | D117: =الربع!D133 -> 0 | F117: 0 | I117: لم يتم الصرف | J117: 0 | L117: تم الصرف | M117: لم يتم الصرف | N117: 0
B118: 109 | C118: =ورقة1!B91 -> 0 | D118: =الربع!D134 -> 0 | F118: 0 | I118: لم يتم الصرف | J118: 0 | L118: تم الصرف | M118: لم يتم الصرف | N118: 0
B119: 110 | C119: =ورقة1!B92 -> 0 | D119: =ورقة1!G92 -> 0 | F119: 0 | I119: لم يتم الصرف | J119: 0 | L119: تم الصرف | M119: لم يتم الصرف | N119: 0
B120: 111 | C120: =ورقة1!B93 -> 0 | D120: =ورقة1!G93 -> 0 | F120: 0 | I120: لم يتم الصرف | J120: 0 | L120: تم الصرف | M120: لم يتم الصرف | N120: 0
B121: 112 | C121: =ورقة1!B94 -> 0 | D121: =ورقة1!G94 -> 0 | F121: 0 | I121: لم يتم الصرف | J121: 0 | L121: تم الصرف | M121: لم يتم الصرف | N121: 0
B122: 113 | C122: =ورقة1!B95 -> 0 | D122: =ورقة1!G95 -> 0 | F122: 0 | I122: لم يتم الصرف | J122: 0 | L122: تم الصرف | M122: لم يتم الصرف | N122: 0
B123: 114 | C123: =ورقة1!B96 -> 0 | D123: =ورقة1!G96 -> 0 | F123: 0 | I123: لم يتم الصرف | J123: 0 | L123: تم الصرف | M123: لم يتم الصرف | N123: 0
B124: 115 | C124: =ورقة1!B97 -> 0 | D124: =ورقة1!G97 -> 0 | F124: 0 | I124: لم يتم الصرف | J124: 0 | L124: تم الصرف | M124: لم يتم الصرف | N124: 0
B125: 116 | C125: =ورقة1!B98 -> 0 | D125: =ورقة1!G98 -> 0 | F125: 0 | I125: لم يتم الصرف | J125: 0 | L125: تم الصرف | M125: لم يتم الصرف | N125: 0
B126: 117 | C126: =ورقة1!B99 -> 0 | D126: =ورقة1!G99 -> 0 | F126: 0 | I126: لم يتم الصرف | J126: 0 | L126: تم الصرف | M126: لم يتم الصرف | N126: 0
B127: 118 | C127: =ورقة1!B100 -> 0 | D127: =ورقة1!G100 -> 0 | F127: 0 | I127: لم يتم الصرف | J127: 0 | L127: تم الصرف | M127: لم يتم الصرف | N127: 0
B128: 119 | C128: =ورقة1!B101 -> 0 | D128: =ورقة1!G101 -> 0 | F128: 0 | I128: لم يتم الصرف | J128: 0 | L128: تم الصرف | M128: لم يتم الصرف | N128: 0
B129: 120 | C129: =ورقة1!B102 -> 0 | D129: =ورقة1!G102 -> 0 | F129: 0 | I129: لم يتم الصرف | J129: 0 | L129: تم الصرف | M129: لم يتم الصرف | N129: 0
B130: 121 | C130: =ورقة1!B103 -> 0 | D130: =ورقة1!G103 -> 0 | F130: 0 | I130: لم يتم الصرف | J130: 0 | L130: تم الصرف | M130: لم يتم الصرف | N130: 0
B131: 122 | C131: =ورقة1!B104 -> 0 | D131: =ورقة1!G104 -> 0 | F131: 0 | I131: لم يتم الصرف | J131: 0 | L131: تم الصرف | M131: لم يتم الصرف | N131: 0
B132: 123 | C132: =ورقة1!B105 -> 0 | D132: =ورقة1!G105 -> 0 | F132: 0 | I132: لم يتم الصرف | J132: 0 | L132: تم الصرف | M132: لم يتم الصرف | N132: 0
B133: 124 | C133: =ورقة1!B106 -> 0 | D133: =ورقة1!G106 -> 0 | F133: 0 | I133: لم يتم الصرف | J133: 0 | L133: تم الصرف | M133: لم يتم الصرف | N133: 0
B134: 125 | C134: =ورقة1!B107 -> 0 | D134: =ورقة1!G107 -> 0 | F134: 0 | I134: لم يتم الصرف | J134: 0 | L134: تم الصرف | M134: لم يتم الصرف | N134: 0
B135: 126 | C135: =ورقة1!B108 -> 0 | D135: =ورقة1!G108 -> 0 | F135: 0 | I135: لم يتم الصرف | J135: 0 | L135: تم الصرف | M135: لم يتم الصرف | N135: 0
B136: 127 | C136: =ورقة1!B109 -> 0 | D136: =ورقة1!G109 -> 0 | F136: 0 | I136: لم يتم الصرف | J136: 0 | L136: تم الصرف | M136: لم يتم الصرف | N136: 0
B137: 128 | C137: =ورقة1!B95 -> 0 | D137: =ورقة1!G95 -> 0 | F137: 0 | I137: لم يتم الصرف | J137: 0 | L137: تم الصرف | M137: لم يتم الصرف | N137: 0
B138: 129 | C138: =ورقة1!B96 -> 0 | D138: =ورقة1!G96 -> 0 | F138: =IF(D138=0,0,J138) -> 0 | I138: =IF(E138=$HA$10,L138,M138) -> لم يتم الصرف | J138: =IF(E138=0,0,I138) -> 0 | L138: تم الصرف | M138: لم يتم الصرف | N138: 0
B139: 130 | C139: =ورقة1!B97 -> 0 | D139: =ورقة1!G97 -> 0 | F139: 0 | I139: لم يتم الصرف | J139: 0 | L139: تم الصرف | M139: لم يتم الصرف | N139: =IF(E139=$HA$10,D139,0) -> 0
B140: 131 | C140: =ورقة1!B98 -> 0 | D140: =ورقة1!G98 -> 0 | F140: 0 | I140: لم يتم الصرف | J140: 0 | L140: تم الصرف | M140: لم يتم الصرف | N140: 0
B141: 132 | C141: =ورقة1!B99 -> 0 | D141: =ورقة1!G99 -> 0 | F141: 0 | I141: لم يتم الصرف | J141: 0 | L141: تم الصرف | M141: لم يتم الصرف | N141: 0
B142: 133 | C142: =ورقة1!B100 -> 0 | D142: =ورقة1!G100 -> 0 | F142: 0 | I142: لم يتم الصرف | J142: 0 | L142: تم الصرف | M142: لم يتم الصرف | N142: 0
B143: 134 | C143: =ورقة1!B101 -> 0 | D143: =ورقة1!G101 -> 0 | F143: 0 | I143: لم يتم الصرف | J143: 0 | L143: تم الصرف | M143: لم يتم الصرف | N143: 0
B144: 135 | C144: =ورقة1!B102 -> 0 | D144: =ورقة1!G102 -> 0 | F144: 0 | I144: لم يتم الصرف | J144: 0 | L144: تم الصرف | M144: لم يتم الصرف | N144: 0
B145: 136 | C145: =ورقة1!B103 -> 0 | D145: =ورقة1!G103 -> 0 | F145: 0 | I145: لم يتم الصرف | J145: 0 | L145: تم الصرف | M145: لم يتم الصرف | N145: 0
B146: 137 | C146: =ورقة1!B104 -> 0 | D146: =ورقة1!G104 -> 0 | F146: 0 | I146: لم يتم الصرف | J146: 0 | L146: تم الصرف | M146: لم يتم الصرف | N146: 0
B147: 138 | C147: =ورقة1!B105 -> 0 | D147: =ورقة1!G105 -> 0 | F147: 0 | I147: لم يتم الصرف | J147: 0 | L147: تم الصرف | M147: لم يتم الصرف | N147: 0
B148: 139 | C148: =ورقة1!B106 -> 0 | D148: =ورقة1!G106 -> 0 | F148: 0 | I148: لم يتم الصرف | J148: 0 | L148: تم الصرف | M148: لم يتم الصرف | N148: 0
B149: 140 | C149: =ورقة1!B107 -> 0 | D149: =ورقة1!G107 -> 0 | F149: 0 | I149: لم يتم الصرف | J149: 0 | L149: تم الصرف | M149: لم يتم الصرف | N149: 0
B150: 141 | C150: =ورقة1!B108 -> 0 | D150: =ورقة1!G108 -> 0 | F150: 0 | I150: لم يتم الصرف | J150: 0 | L150: تم الصرف | M150: لم يتم الصرف | N150: 0
B151: 142 | C151: =ورقة1!B109 -> 0 | D151: =ورقة1!G109 -> 0 | F151: 0 | I151: لم يتم الصرف | J151: 0 | L151: تم الصرف | M151: لم يتم الصرف | N151: 0
B152: 143 | C152: =ورقة1!B110 -> 0 | D152: =ورقة1!G110 -> 0 | F152: 0 | I152: لم يتم الصرف | J152: 0 | L152: تم الصرف | M152: لم يتم الصرف | N152: 0
B153: 144 | C153: =ورقة1!B111 -> 0 | D153: =ورقة1!G111 -> 0 | F153: 0 | I153: لم يتم الصرف | J153: 0 | L153: تم الصرف | M153: لم يتم الصرف | N153: 0
B154: 145 | C154: =ورقة1!B112 -> 0 | D154: =ورقة1!G112 -> 0 | F154: 0 | I154: لم يتم الصرف | J154: 0 | L154: تم الصرف | M154: لم يتم الصرف | N154: 0
B155: 146 | C155: =ورقة1!B113 -> 0 | D155: =ورقة1!G113 -> 0 | F155: 0 | I155: لم يتم الصرف | J155: 0 | L155: تم الصرف | M155: لم يتم الصرف | N155: 0
B156: 147 | C156: =ورقة1!B112 -> 0 | D156: =ورقة1!G112 -> 0 | F156: 0 | I156: لم يتم الصرف | J156: 0 | L156: تم الصرف | M156: لم يتم الصرف | N156: 0
B157: 148 | C157: =ورقة1!B113 -> 0 | D157: =ورقة1!G113 -> 0 | F157: 0 | I157: لم يتم الصرف | J157: 0 | L157: تم الصرف | M157: لم يتم الصرف | N157: 0
B158: 149 | C158: =ورقة1!B114 -> 0 | D158: =ورقة1!G114 -> 0 | F158: 0 | I158: لم يتم الصرف | J158: 0 | L158: تم الصرف | M158: لم يتم الصرف | N158: 0
B159: 150 | C159: =ورقة1!B115 -> 0 | D159: =ورقة1!G115 -> 0 | F159: 0 | I159: لم يتم الصرف | J159: 0 | L159: تم الصرف | M159: لم يتم الصرف | N159: 0
B160: الاجمـــــــــــــــــــالي | D160: =SUM(D10:D159) -> 29949.05775 | N160: =SUM(N10:N159) -> 150.0177
C224: a
C225: r
